fUSD/lending_fUSD_20250906
["ID","MTS","AMOUNT","RATE_DAILY","PERIOD"]
[383804153,1757123443773,-515.25755763,0.00035616,10]
[383804155,1757123443782,-400.0,0.00035616,10]
[383804157,1757123443792,-409.39795394,0.00035616,10]
[383804159,1757123443801,-400.0,0.00035616,10]
[383804161,1757123443810,-407.86881141,0.00035616,10]
[383804163,1757123443819,-400.0,0.00035616,10]
[383804165,1757123443829,-400.0,0.00035616,10]
[383804166,1757123443839,-400.0,0.00035616,10]
[383804168,1757123443848,-404.71356395,0.00035616,10]
[383804170,1757123443857,-407.8428888,0.00035616,10]
[383804172,1757123443866,-505.03603798,0.00035616,10]
[383804174,1757123443876,-407.66820095,0.00035616,10]
[383804176,1757123443885,-406.57437404,0.00035616,10]
[383804178,1757123443894,-403.45742649,0.00035616,10]
[383804180,1757123443904,-400.0,0.00035616,10]
[383804182,1757123443913,-406.50564395,0.00035616,10]
[383804184,1757123443923,-400.0,0.00035616,10]
[383804186,1757123443932,-430.73219738,0.00035616,10]
[383804188,1757123443942,-400.0,0.00035616,10]
[383804190,1757123443951,-408.60334735,0.00035616,10]
[383804192,1757123443960,-1339.72,0.00035616,5]
[383804194,1757123443969,-400.0,0.00035616,10]
[383804196,1757123443978,-409.16625102,0.00035616,10]
[383804198,1757123443987,-424.23889691,0.00035616,10]
[383804200,1757123443997,-405.19622723,0.00035616,10]
[383804202,1757123444006,-400.0,0.00035616,10]
[383804204,1757123444015,-402.91787975,0.00035616,10]
[383804206,1757123444024,-412.72673479,0.00035616,10]
[383804208,1757123444034,-403.45384613,0.00035616,10]
[383804210,1757123444044,-402.3381544,0.00035616,10]
[383804212,1757123444053,-404.90505421,0.00035616,10]
[383804214,1757123444063,-423.63617551,0.00035616,10]
[383804216,1757123444072,-402.9903088,0.00035616,10]
[383804218,1757123444085,-404.66910596,0.00035616,10]
[383804220,1757123444094,-402.17858198,0.00035616,10]
[383804222,1757123444105,-400.0,0.00035616,10]
[383804224,1757123444114,-403.90813783,0.00035616,10]
[383804226,1757123444124,-426.93225852,0.00035616,10]
[383804228,1757123444134,-426.89476151,0.00035616,10]
[383804230,1757123444143,-400.0,0.00035616,10]
[383804232,1757123444152,-404.94620366,0.00035616,10]
[383804234,1757123444161,-406.45173527,0.00035616,10]
[383804236,1757123444171,-400.0,0.00035616,10]
[383804238,1757123444180,-407.36414999,0.00035616,10]
[383804240,1757123444192,-400.0,0.00035616,10]
[383804242,1757123444201,-400.0,0.00035616,10]
[383804244,1757123444210,-400.0,0.00035616,10]
[383804246,1757123444219,-403.35059751,0.00035616,10]
[383804248,1757123444228,-400.0,0.00035616,10]
[383804250,1757123444237,-400.0,0.00035616,10]
[383804252,1757123444246,-493.03643585,0.00035616,10]
[383804254,1757123444256,-402.05014752,0.00035616,10]
[383804256,1757123444265,-400.0,0.00035616,10]
[383804258,1757123444275,-400.0,0.00035616,10]
[383804260,1757123444284,-400.0,0.00035616,10]
[383804262,1757123444295,-400.0,0.00035616,10]
[383804264,1757123444304,-407.07703614,0.00035616,10]
[383804266,1757123444313,-402.55440819,0.00035616,10]
[383804268,1757123444322,-412.48533783,0.00035616,10]
[383804270,1757123444331,-400.0,0.00035616,10]
[383804272,1757123444340,-418.57962963,0.00035616,10]
[383804274,1757123444349,-400.0,0.00035616,10]
[383804276,1757123444358,-400.0,0.00035616,10]
[383804278,1757123444367,-409.3222747,0.00035616,10]
[383804280,1757123444376,-413.31661368,0.00035616,10]
[383804282,1757123444386,-407.76312596,0.00035616,10]
[383804283,1757123444395,-400.0,0.00035616,10]
[383804285,1757123444404,-404.375626,0.00035616,10]
[383804287,1757123444413,-402.6974271,0.00035616,10]
[383804289,1757123444423,-400.0,0.00035616,10]
[383804291,1757123444431,-411.61987135,0.00035616,10]
[383804293,1757123444441,-400.0,0.00035616,10]
[383804295,1757123444450,-400.0,0.00035616,10]
[383804297,1757123444458,-424.28158469,0.00035616,10]
[383804299,1757123444468,-403.70159056,0.00035616,10]
[383804301,1757123444477,-414.06395148,0.00035616,10]
[383804303,1757123444486,-403.52129064,0.00035616,10]
[383804305,1757123444495,-225.493802,0.00035616,10]
[383804307,1757123444504,-400.0,0.00035616,10]
[383804309,1757123444513,-404.39668077,0.00035616,10]
[383804311,1757123444523,-400.0,0.00035616,10]
[383804313,1757123444531,-402.63800007,0.00035616,10]
[383804315,1757123444540,-411.17181249,0.00035616,10]
[383804317,1757123444549,-450.76392288,0.00035616,10]
[383804319,1757123444559,-400.0,0.00035616,10]
[383804321,1757123444567,-400.0,0.00035616,10]
[383804323,1757123444576,-400.0,0.00035616,10]
[383804325,1757123444586,-408.85708751,0.00035616,10]
[383804327,1757123444595,-400.0,0.00035616,10]
[383804329,1757123444604,-409.04952818,0.00035616,10]
[383804331,1757123444613,-401.28505849,0.00035616,10]
[383804333,1757123444622,-415.12286188,0.00035616,10]
[383804335,1757123444631,-404.0688942,0.00035616,10]
[383804337,1757123444640,-402.35945692,0.00035616,10]
[383804339,1757123444649,-400.0,0.00035616,10]
[383804341,1757123444659,-407.76709529,0.00035616,10]
[383804343,1757123444668,-400.0,0.00035616,10]
[383804345,1757123444677,-400.0,0.00035616,10]
[383804347,1757123444686,-410.86686122,0.00035616,10]
[383804349,1757123444696,-452.19562279,0.00035616,10]
[383804351,1757123444705,-404.04749407,0.00035616,10]
[383804353,1757123444714,-402.54195922,0.00035616,10]
[383804355,1757123444725,-400.0,0.00035616,10]
[383804357,1757123444734,-400.0,0.00035616,10]
[383804372,1757123444857,-500.0,0.00035616,10]
[383804374,1757123444867,-405.02008914,0.00035616,10]
[383804376,1757123444877,-402.13537098,0.00035616,10]
[383804378,1757123444886,-402.90444311,0.00035616,10]
[383804380,1757123444895,-401.65342288,0.00035616,10]
[383804382,1757123444904,-400.0,0.00035616,10]
[383804384,1757123444914,-400.0,0.00035616,10]
[383804386,1757123444923,-400.0,0.00035616,10]
[383804388,1757123444932,-406.97385064,0.00035616,10]
[383804390,1757123444942,-400.0,0.00035616,10]
[383804392,1757123444951,-400.0,0.00035616,10]
[383804394,1757123444961,-401.23514068,0.00035616,10]
[383804396,1757123444970,-400.0,0.00035616,10]
[383804398,1757123444979,-405.13459365,0.00035616,10]
[383804400,1757123444988,-408.00308416,0.00035616,10]
[383804402,1757123444997,-400.0,0.00035616,10]
[383804404,1757123445007,-400.0,0.00035616,10]
[383804406,1757123445016,-401.66737714,0.00035616,10]
[383804408,1757123445025,-400.0,0.00035616,10]
[383804410,1757123445034,-401.89132433,0.00035616,10]
[383804412,1757123445044,-243.556247,0.00035616,10]
[383804414,1757123445053,-410.0004413,0.00035616,10]
[383804416,1757123445062,-400.0,0.00035616,10]
[383804418,1757123445071,-414.52855262,0.00035616,10]
[383804420,1757123445085,-412.81437618,0.00035616,10]
[383804422,1757123445094,-403.70288582,0.00035616,10]
[383804424,1757123445104,-400.0,0.00035616,10]
[383804426,1757123445113,-421.57058385,0.00035616,10]
[383804428,1757123445126,-413.34321647,0.00035616,10]
[383804430,1757123445135,-500.0,0.00035616,10]
[383804431,1757123445145,-500.0,0.00035616,10]
[383804434,1757123445156,-519.38869837,0.00035616,10]
[383804435,1757123445166,-411.71948139,0.00035616,10]
[383804437,1757123445176,-400.0,0.00035616,10]
[383804439,1757123445186,-403.3649644,0.00035616,10]
[383804441,1757123445196,-405.822162,0.00035616,10]
[383804444,1757123445206,-400.0,0.00035616,10]
[383804446,1757123445217,-408.68083063,0.00035616,10]
[383804448,1757123445226,-400.0,0.00035616,10]
[383804450,1757123445236,-408.99479892,0.00035616,10]
[383804452,1757123445245,-402.17908082,0.00035616,10]
[383804454,1757123445255,-400.0,0.00035616,10]
[383804456,1757123445264,-400.0,0.00035616,10]
[383804457,1757123445274,-250.01227704,0.00035616,10]
[383804459,1757123445284,-400.0,0.00035616,10]
[383804461,1757123445293,-405.47490244,0.00035616,10]
[383804463,1757123445302,-400.0,0.00035616,10]
[383804465,1757123445312,-400.0,0.00035616,10]
[383804467,1757123445321,-400.0,0.00035616,10]
[383804469,1757123445330,-511.67417651,0.00035616,10]
[383804471,1757123445339,-408.61855956,0.00035616,10]
[383804473,1757123445348,-400.0,0.00035616,10]
[383804475,1757123445358,-403.9158997,0.00035616,10]
[383804477,1757123445367,-400.0,0.00035616,10]
[383804479,1757123445377,-400.0,0.00035616,10]
[383804481,1757123445387,-400.0,0.00035616,10]
[383804483,1757123445396,-400.0,0.00035616,10]
[383804485,1757123445405,-400.0,0.00035616,10]
[383804487,1757123445415,-400.0,0.00035616,10]
[383804489,1757123445424,-405.92104211,0.00035616,10]
[383804491,1757123445434,-410.02718724,0.00035616,10]
[383804493,1757123445443,-802.56,0.00035616,10]
[383804495,1757123445453,-406.05944969,0.00035616,10]
[383804497,1757123445462,-400.0,0.00035616,10]
[383804499,1757123445472,-404.47733088,0.00035616,10]
[383804501,1757123445481,-405.78676992,0.00035616,10]
[383804503,1757123445491,-403.64555271,0.00035616,10]
[383804505,1757123445500,-513.35376454,0.00035616,10]
[383804507,1757123445509,-414.2368975,0.00035616,10]
[383804509,1757123445518,-418.73821597,0.00035616,10]
[383804511,1757123445527,-400.0,0.00035616,10]
[383804513,1757123445537,-407.06728466,0.00035616,10]
[383804515,1757123445546,-404.91849629,0.00035616,10]
[383804517,1757123445555,-400.0,0.00035616,10]
[383804519,1757123445565,-412.02058147,0.00035616,10]
[383804521,1757123445574,-411.47918422,0.00035616,10]
[383804523,1757123445583,-400.0,0.00035616,10]
[383804525,1757123445592,-400.0,0.00035616,10]
[383804527,1757123445602,-426.14491477,0.00035616,10]
[383804528,1757123445611,-402.12571196,0.00035616,10]
[383804529,1757123445620,-400.0,0.00035616,10]
[383804530,1757123445630,-402.10857857,0.00035616,10]
[383804532,1757123445639,-407.94731111,0.00035616,10]
[383804534,1757123445649,-406.3871822,0.00035616,10]
[383804536,1757123445659,-412.58015433,0.00035616,10]
[383804538,1757123445668,-404.38075957,0.00035616,10]
[383804540,1757123445678,-407.0551277,0.00035616,10]
[383804542,1757123445687,-409.35179877,0.00035616,10]
[383804544,1757123445697,-406.16588123,0.00035616,10]
[383804546,1757123445706,-408.13013895,0.00035616,10]
[383804548,1757123445715,-405.21798498,0.00035616,10]
[383804550,1757123445725,-400.0,0.00035616,10]
[383804552,1757123445735,-400.0,0.00035616,10]
[383804554,1757123445744,-412.4865879,0.00035616,10]
[383804556,1757123445753,-404.06516917,0.00035616,10]
[383804558,1757123445762,-516.86631282,0.00035616,10]
[383804560,1757123445771,-406.79,0.00035616,10]
[383804562,1757123445780,-404.96253337,0.00035616,10]
[383804564,1757123445789,-408.35905014,0.00035616,10]
[383804566,1757123445798,-400.0,0.00035616,10]
[383804568,1757123445807,-409.25659814,0.00035616,10]
[383804570,1757123445816,-404.49899369,0.00035616,10]
[383804572,1757123445825,-404.60954096,0.00035616,10]
[383804574,1757123445834,-406.21964221,0.00035616,10]
[383804576,1757123445844,-418.45212926,0.00035616,10]
[383804578,1757123445853,-405.76565771,0.00035616,10]
[383804580,1757123445862,-400.0,0.00035616,10]
[383804582,1757123445871,-400.0,0.00035616,10]
[383804584,1757123445880,-409.37145283,0.00035616,10]
[383804586,1757123445891,-410.43446563,0.00035616,10]
[383804588,1757123445900,-408.78912492,0.00035616,10]
[383804590,1757123445909,-451.68756175,0.00035616,10]
[383804592,1757123445919,-413.11585931,0.00035616,10]
[383804594,1757123445928,-400.0,0.00035616,10]
[383804596,1757123445937,-404.16599328,0.00035616,10]
[383804598,1757123445947,-414.60541723,0.00035616,10]
[383804600,1757123445956,-416.33506526,0.00035616,10]
[383804602,1757123445965,-247.83895384,0.00035616,10]
[383804604,1757123445974,-400.0,0.00035616,10]
[383804606,1757123445983,-403.75345183,0.00035616,10]
[383804608,1757123445992,-416.63665391,0.00035616,10]
[383804610,1757123446002,-409.72185617,0.00035616,10]
[383804612,1757123446011,-406.46694965,0.00035616,10]
[383804614,1757123446020,-400.0,0.00035616,10]
[383804616,1757123446029,-400.0,0.00035616,10]
[383804618,1757123446038,-400.0,0.00035616,10]
[383804620,1757123446048,-403.70246701,0.00035616,10]
[383804622,1757123446057,-407.92340467,0.00035616,10]
[383804623,1757123446066,-404.00107365,0.00035616,10]
[383804625,1757123446080,-447.97284393,0.00035616,10]
[383804627,1757123446088,-400.0,0.00035616,10]
[383804629,1757123446098,-400.0,0.00035616,10]
[383804631,1757123446107,-400.0,0.00035616,10]
[383804633,1757123446116,-405.02238253,0.00035616,10]
[383804635,1757123446126,-400.0,0.00035616,10]
[383804637,1757123446135,-400.0,0.00035616,10]
[383804639,1757123446144,-400.0,0.00035616,10]
[383804641,1757123446153,-407.44052194,0.00035616,10]
[383804643,1757123446163,-400.0,0.00035616,10]
[383804645,1757123446172,-400.0,0.00035616,10]
[383804647,1757123446181,-405.64075047,0.00035616,10]
[383804649,1757123446191,-400.0,0.00035616,10]
[383804651,1757123446201,-402.00665055,0.00035616,10]
[383804653,1757123446210,-403.7739818,0.00035616,10]
[383804655,1757123446219,-400.0,0.00035616,10]
[383804657,1757123446228,-400.0,0.00035616,10]
[383804659,1757123446238,-404.30099509,0.00035616,10]
[383804661,1757123446247,-400.0,0.00035616,10]
[383804663,1757123446255,-407.57459227,0.00035616,10]
[383804665,1757123446265,-405.81076784,0.00035616,10]
[383804667,1757123446274,-472.61630816,0.00035616,10]
[383804669,1757123446283,-405.65569391,0.00035616,10]
[383804671,1757123446292,-405.90243611,0.00035616,10]
[383804673,1757123446302,-407.18933807,0.00035616,10]
[383804675,1757123446310,-412.40576691,0.00035616,10]
[383804677,1757123446319,-400.0,0.00035616,10]
[383804679,1757123446328,-415.709527,0.00035616,10]
[383804680,1757123446337,-406.73433041,0.00035616,10]
[383804682,1757123446346,-403.38940914,0.00035616,10]
[383804684,1757123446355,-403.95782892,0.00035616,10]
[383804686,1757123446364,-401.420783,0.00035616,10]
[383804688,1757123446372,-400.0,0.00035616,10]
[383804690,1757123446381,-400.0,0.00035616,10]
[383804692,1757123446391,-402.73257724,0.00035616,10]
[383804694,1757123446399,-400.0,0.00035616,10]
[383804696,1757123446408,-406.01349916,0.00035616,10]
[383804698,1757123446417,-532.38911932,0.00035616,10]
[383804700,1757123446427,-400.0,0.00035616,10]
[383804702,1757123446436,-406.94563464,0.00035616,10]
[383804704,1757123446444,-400.0,0.00035616,10]
[383804706,1757123446453,-400.0,0.00035616,10]
[383804708,1757123446462,-408.74926142,0.00035616,10]
[383804710,1757123446471,-400.0,0.00035616,10]
[383804712,1757123446480,-406.10730636,0.00035616,10]
[383804714,1757123446489,-406.30114172,0.00035616,10]
[383804716,1757123446498,-400.0,0.00035616,10]
[383804718,1757123446508,-414.0904139,0.00035616,10]
[383804720,1757123446517,-400.0,0.00035616,10]
[383804722,1757123446526,-405.50983772,0.00035616,10]
[383804724,1757123446535,-400.0,0.00035616,10]
[383804726,1757123446545,-400.0,0.00035616,10]
[383804727,1757123446555,-409.62671554,0.00035616,10]
[383804730,1757123446565,-476.17125343,0.00035616,10]
[383804732,1757123446574,-404.24959681,0.00035616,10]
[383804733,1757123446583,-404.31756415,0.00035616,10]
[383804735,1757123446592,-450.03909855,0.00035616,10]
[383804737,1757123446602,-404.74212369,0.00035616,10]
[383804739,1757123446611,-413.10645466,0.00035616,10]
[383804741,1757123446620,-410.18440035,0.00035616,10]
[383804743,1757123446629,-400.0,0.00035616,10]
[383804745,1757123446639,-509.36711601,0.00035616,10]
[383804747,1757123446648,-400.0,0.00035616,10]
[383804749,1757123446659,-412.10840589,0.00035616,10]
[383804751,1757123446668,-400.0,0.00035616,10]
[383804753,1757123446678,-400.0,0.00035616,10]
[383804755,1757123446688,-188.90024459,0.00035616,10]
[383804757,1757123446697,-471.69343381,0.00035616,10]
[383804759,1757123446707,-409.92873801,0.00035616,10]
[383804761,1757123446716,-419.49499285,0.00035616,10]
[383804763,1757123446726,-473.05168341,0.00035616,10]
[383804765,1757123446735,-400.0,0.00035616,10]
[383804767,1757123446744,-400.0,0.00035616,10]
[383804769,1757123446754,-406.78347757,0.00035616,10]
[383804771,1757123446763,-294.5260188,0.00035616,10]
[383804773,1757123446772,-400.0,0.00035616,10]
[383804775,1757123446783,-404.33304518,0.00035616,10]
[383804777,1757123446792,-400.0,0.00035616,10]
[383804779,1757123446801,-400.0,0.00035616,10]
[383804781,1757123446810,-400.0,0.00035616,10]
[383804783,1757123446820,-400.0,0.00035616,10]
[383804785,1757123446829,-400.0,0.00035616,10]
[383804787,1757123446839,-404.77216402,0.00035616,10]
[383804789,1757123446849,-400.0,0.00035616,10]
[383804791,1757123446858,-437.96336916,0.00035616,10]
[383804793,1757123446868,-400.0,0.00035616,10]
[383804795,1757123446877,-400.0,0.00035616,10]
[383804797,1757123446886,-407.04950786,0.00035616,10]
[383804799,1757123446896,-400.0,0.00035616,10]
[383804801,1757123446906,-400.0,0.00035616,10]
[383804803,1757123446915,-414.68183694,0.00035616,10]
[383804805,1757123446924,-255.47854039,0.00035616,10]
[383804807,1757123446932,-409.71047261,0.00035616,10]
[383804809,1757123446942,-400.0,0.00035616,10]
[383804811,1757123446951,-408.11848957,0.00035616,10]
[383804813,1757123446961,-411.5769242,0.00035616,10]
[383804815,1757123446970,-408.71839522,0.00035616,7]
[383804817,1757123446979,-594.59,0.00035616,10]
[383804819,1757123446988,-408.55645813,0.00035616,10]
[383804821,1757123446997,-403.18539205,0.00035616,10]
[383804823,1757123447006,-412.67154271,0.00035616,10]
[383804825,1757123447015,-400.0,0.00035616,10]
[383804827,1757123447025,-400.0,0.00035616,10]
[383804829,1757123447035,-400.0,0.00035616,10]
[383804830,1757123447043,-415.31740406,0.00035616,10]
[383804832,1757123447053,-403.45232756,0.00035616,10]
[383804834,1757123447062,-467.12291897,0.00035616,10]
[383804836,1757123447072,-400.0,0.00035616,10]
[383804838,1757123447085,-416.08095405,0.00035616,10]
[383804840,1757123447094,-406.67182209,0.00035616,10]
[383804842,1757123447103,-400.0,0.00035616,10]
[383804844,1757123447112,-439.47121471,0.00035616,10]
[383804846,1757123447123,-405.15984566,0.00035616,10]
[383804848,1757123447133,-521.63382537,0.00035616,10]
[383804850,1757123447142,-403.81241923,0.00035616,10]
[383804852,1757123447152,-402.51023451,0.00035616,10]
[383804854,1757123447161,-400.0,0.00035616,10]
[383804856,1757123447170,-400.0,0.00035616,10]
[383804858,1757123447179,-412.41674115,0.00035616,10]
[383804860,1757123447188,-400.0,0.00035616,10]
[383804862,1757123447197,-405.07383018,0.00035616,10]
[383804864,1757123447206,-408.66251859,0.00035616,10]
[383804866,1757123447217,-539.36957515,0.00035616,10]
[383804868,1757123447227,-400.0,0.00035616,10]
[383804870,1757123447236,-406.45781666,0.00035616,10]
[383804872,1757123447246,-403.89180886,0.00035616,10]
[383804874,1757123447255,-400.0,0.00035616,10]
[383804876,1757123447264,-404.99039767,0.00035616,10]
[383804878,1757123447273,-400.0,0.00035616,10]
[383804880,1757123447282,-402.41479802,0.00035616,10]
[383804892,1757123447292,-405.19506779,0.00035616,10]
[383804895,1757123447411,-481.54282696,0.00035616,10]
[383804897,1757123447421,-401.53276471,0.00035616,10]
[383804899,1757123447430,-283.60746874,0.00035616,10]
[383804901,1757123447439,-407.14967094,0.00035616,10]
[383804903,1757123447449,-406.10464538,0.00035616,10]
[383804905,1757123447458,-468.1458398,0.00035616,10]
[383804907,1757123447467,-403.44386257,0.00035616,10]
[383804909,1757123447476,-400.0,0.00035616,10]
[383804910,1757123447485,-403.67009802,0.00035616,10]
[383804912,1757123447495,-409.01265405,0.00035616,10]
[383804914,1757123447504,-160.20704718,0.00035616,10]
[383804916,1757123447513,-400.0,0.00035616,10]
[383804918,1757123447522,-409.62916582,0.00035616,10]
[383804920,1757123447531,-415.27168913,0.00035616,10]
[383804922,1757123447540,-400.0,0.00035616,10]
[383804924,1757123447550,-406.77618177,0.00035616,10]
[383804926,1757123447559,-405.27870563,0.00035616,10]
[383804928,1757123447568,-401.13513942,0.00035616,10]
[383804930,1757123447577,-402.59122722,0.00035616,10]
[383804932,1757123447586,-400.0,0.00035616,10]
[383804934,1757123447595,-409.9866962,0.00035616,10]
[383804936,1757123447604,-400.0,0.00035616,10]
[383804938,1757123447614,-409.28876214,0.00035616,10]
[383804940,1757123447623,-411.22647143,0.00035616,10]
[383804942,1757123447632,-415.53538606,0.00035616,10]
[383804944,1757123447642,-400.0,0.00035616,10]
[383804946,1757123447651,-405.98994673,0.00035616,10]
[383804948,1757123447661,-481.71,0.00035616,10]
[383804950,1757123447670,-403.53955868,0.00035616,10]
[383804952,1757123447679,-414.18140173,0.00035616,10]
[383804954,1757123447688,-403.22330455,0.00035616,10]
[383804956,1757123447697,-400.0,0.00035616,10]
[383804958,1757123447707,-417.11753675,0.00035616,10]
[383804960,1757123447716,-417.25149424,0.00035616,10]
[383804962,1757123447725,-349.55691911,0.00035616,10]
[383804964,1757123447735,-446.24435121,0.00035616,10]
[383804966,1757123447744,-404.63425193,0.00035616,10]
[383804968,1757123447753,-402.08991742,0.00035616,10]
[383804970,1757123447762,-404.1895971,0.00035616,10]
[383804971,1757123447771,-412.53,0.00035616,10]
[383804973,1757123447782,-400.0,0.00035616,10]
[383804975,1757123447791,-404.58649939,0.00035616,10]
[383804977,1757123447800,-406.3685455,0.00035616,10]
[383804979,1757123447809,-422.87454137,0.00035616,10]
[383804981,1757123447819,-470.39,0.00035616,10]
[383804983,1757123447828,-407.98923797,0.00035616,10]
[383804985,1757123447837,-408.9049616,0.00035616,10]
[383804987,1757123447846,-539.95311693,0.00035616,10]
[383804989,1757123447856,-407.72527069,0.00035616,10]
[383804991,1757123447865,-459.2664261,0.00035616,10]
[383804993,1757123447874,-411.90062528,0.00035616,10]
[383804995,1757123447883,-400.0,0.00035616,10]
[383804997,1757123447892,-400.0,0.00035616,10]
[383804999,1757123447903,-1015.00678231,0.00035616,10]
[383805001,1757123447912,-543.23442664,0.00035616,10]
[383805003,1757123447921,-400.0,0.00035616,10]
[383805005,1757123447930,-425.17887848,0.00035616,10]
[383805007,1757123447940,-408.97573399,0.00035616,10]
[383805009,1757123447949,-405.92999804,0.00035616,10]
[383805011,1757123447958,-484.60683312,0.00035616,10]
[383805013,1757123447967,-400.0,0.00035616,10]
[383805014,1757123447976,-500.0,0.00035616,2]
[383805016,1757123447985,-405.72127462,0.00035616,10]
[383805018,1757123447995,-400.0,0.00035616,10]
[383805020,1757123448004,-400.0,0.00035616,10]
[383805022,1757123448014,-200.66026771,0.00035616,10]
[383805024,1757123448023,-400.0,0.00035616,10]
[383805026,1757123448033,-400.0,0.00035616,10]
[383805028,1757123448044,-400.0,0.00035616,10]
[383805030,1757123448054,-400.0,0.00035616,10]
[383805032,1757123448064,-403.8123512,0.00035616,10]
[383805034,1757123448075,-400.0,0.00035616,10]
[383805036,1757123448086,-400.0,0.00035616,10]
[383805038,1757123448096,-404.39511857,0.00035616,10]
[383805040,1757123448105,-403.0286047,0.00035616,10]
[383805042,1757123448115,-400.0,0.00035616,10]
[383805044,1757123448127,-403.52552332,0.00035616,10]
[383805046,1757123448136,-438.51057565,0.00035616,10]
[383805048,1757123448146,-400.0,0.00035616,10]
[383805050,1757123448155,-415.65485865,0.00035616,10]
[383805052,1757123448165,-406.81971542,0.00035616,10]
[383805054,1757123448175,-442.96409965,0.00035616,10]
[383805056,1757123448185,-406.34832015,0.00035616,10]
[383805058,1757123448195,-435.45868074,0.00035616,10]
[383805059,1757123448204,-412.53477027,0.00035616,10]
[383805061,1757123448214,-400.0,0.00035616,10]
[383805063,1757123448225,-404.72081082,0.00035616,10]
[383805064,1757123448235,-414.02399433,0.00035616,10]
[383805065,1757123448244,-430.10783863,0.00035616,10]
[383805066,1757123448254,-406.67182848,0.00035616,10]
[383805067,1757123448263,-408.66690213,0.00035616,10]
[383805068,1757123448273,-490.85227764,0.00035616,10]
[383805069,1757123448282,-408.67552761,0.00035616,10]
[383805070,1757123448292,-420.39019592,0.00035616,10]
[383805071,1757123448301,-410.76008326,0.00035616,10]
[383805072,1757123448311,-402.79903524,0.00035616,10]
[383805073,1757123448320,-405.29541325,0.00035616,10]
[383805075,1757123448329,-421.8046887,0.00035616,10]
[383805076,1757123448339,-400.0,0.00035616,10]
[383805078,1757123448348,-404.9281098,0.00035616,10]
[383805081,1757123448358,-403.95498455,0.00035616,10]
[383805082,1757123448368,-405.21044572,0.00035616,10]
[383805084,1757123448377,-406.68100779,0.00035616,10]
[383805086,1757123448387,-775.57,0.00035616,10]
[383805088,1757123448396,-2894.96,0.00035616,10]
[383805090,1757123448406,-447.20094501,0.00035616,10]
[383805092,1757123448415,-405.70294447,0.00035616,10]
[383805094,1757123448424,-406.41565089,0.00035616,10]
[383805096,1757123448433,-403.39075191,0.00035616,10]
[383805098,1757123448443,-400.0,0.00035616,10]
[383805100,1757123448452,-400.0,0.00035616,10]
[383805102,1757123448461,-410.19296195,0.00035616,10]
[383805104,1757123448470,-405.48075488,0.00035616,10]
[383805106,1757123448480,-400.0,0.00035616,10]
[383805108,1757123448489,-500.0,0.00035616,2]
[383805110,1757123448499,-413.13314434,0.00035616,10]
[383805112,1757123448507,-400.0,0.00035616,10]
[383805114,1757123448516,-400.0,0.00035616,10]
[383805116,1757123448525,-500.0,0.00035616,10]
[383805118,1757123448535,-405.95619557,0.00035616,10]
[383805120,1757123448544,-409.28143164,0.00035616,10]
[383805122,1757123448553,-464.62572337,0.00035616,10]
[383805124,1757123448563,-408.94668881,0.00035616,10]
[383805126,1757123448572,-402.85576388,0.00035616,10]
[383805128,1757123448582,-402.99232482,0.00035616,10]
[383805130,1757123448591,-403.12342225,0.00035616,10]
[383805132,1757123448601,-400.0,0.00035616,10]
[383805134,1757123448611,-421.85172555,0.00035616,10]
[383805136,1757123448621,-400.0,0.00035616,10]
[383805138,1757123448630,-402.8161176,0.00035616,10]
[383805140,1757123448640,-409.19373058,0.00035616,10]
[383805142,1757123448649,-400.0,0.00035616,10]
[383805144,1757123448659,-400.0,0.00035616,10]
[383805146,1757123448668,-400.0,0.00035616,10]
[383805148,1757123448678,-401.57409605,0.00035616,10]
[383805150,1757123448687,-483.70188332,0.00035616,10]